[Event "44th Chess Olympiad Open 2022"]
[Site "Chennai"]
[Date "2022.08.05"]
[Round "7.1"]
[White "Harikrishna, Pentala"]
[Black "Ganguly, Surya Shekhar"]
[Result "1/2-1/2"]
[ECO "D41"]
[WhiteElo "2720"]
[BlackElo "2608"]
[Annotator "TA"]
[PlyCount "60"]
[EventDate "2022.07.29"]
[EventType "team-tourn"]
[EventCountry "IND"]
[SourceTitle "playchess.com"]
[Source "ChessBase"]
[SourceQuality "1"]
[WhiteTeam "India"]
[BlackTeam "India"]
[WhiteTeamCountry "IND"]
[BlackTeamCountry "IND"]
[TimeControl "40/5400+30:1800+30"]

{[%evp 19,60,13,8,0,0,0,0,0,0,0,0,0,0,0,14,16,10,0,15,14,65,58,58,58,49,58,64,37,45,52,110,108,114,121,122,24,97,61,50,59,53,49,84]} 1. d4 {[%emt 0:00:04]} d5 {[%emt 0:00:53]} 2. c4 {[%emt 0:00:08]} e6 {[%emt 0:00:06]} 3. Nf3 {[%emt 0:00:25]} Nf6 {[%emt 0:00:09]} 4. Nc3 {[%emt 0:00:07]} c5 {[%emt 0:00:20]} 5. cxd5 {[%emt 0:00:05]} Nxd5 {[%emt 0:00:05]} 6. e4 {[%emt 0:00:05]} Nxc3 {[%emt 0:00:06]} 7. bxc3 {[%emt 0:00:05]} cxd4 {[%emt 0:00:07]} 8. cxd4 {[%emt 0:00:04]} Bb4+ {[%emt 0:00:08]} 9. Bd2 {[%emt 0:00:05]} Bxd2+ {[%emt 0:00:05]} 10. Qxd2 {[%emt 0:00:08]} O-O {[%emt 0:00:12]} 11. h4 {[%emt 0:00:49] D41: Queen's Gambit Declined: Semi-Tarrasch with 5 cxd5.} b6 {[%emt 0:00:09]} 12. Rd1 {[%emt 0:00:08]} Bb7 {[%emt 0:00:04]} 13. Bd3 {[%emt 0:00:08] The position is equal.} Nd7 {[%emt 0:00:04]} 14. O-O {[%emt 0:00:25]} Rc8 {[%emt 0:00:07]} 15. Rfe1 {[%emt 0:00:19] [#]} h6 $146 {[%emt 0:00:08]} ({Predecessor:} 15... Re8 16. Bb1 Qc7 17. Qe3 Nf6 18. Rc1 Qe7 19. Rxc8 Rxc8 20. Qd2 Nd7 21. Qb2 h6 {½-½ (31) Bu,X (2708)-Ma,Q (2645) Hangzhou 2022}) 16. Bb1 {[%emt 0:02:09]} Qc7 {[%emt 0:01:56]} 17. d5 {[%emt 0:10:24] White wants to play dxe6.} Ne5 {[%emt 0:16:02]} 18. Qf4 {[%emt 0:07:35]} (18. Nd4 {looks sharper.} Ng4 19. e5 Bxd5 20. Qf4) 18... Nxf3+ {[%emt 0:01:36]} 19. Qxf3 {[%emt 0:00:09]} e5 {[%emt 0:04:35]} (19... Qc3 $11) 20. Qa3 $14 {[%emt 0:09:10] White is more active.} a6 {[%emt 0:07:52]} 21. Rc1 {[%emt 0:01:58]} Qd7 {[%emt 0:03:42]} 22. Bd3 {[%emt 0:05:57]} b5 {[%emt 0:05:35]} 23. Qb4 {[%emt 0:10:18]} Rxc1 {[%emt 0:18:34]} 24. Rxc1 {[%emt 0:01:21]} Rc8 {[%emt 0:00:07]} ({Better is} 24... f5 $1 $14) 25. Rxc8+ $16 {[%emt 0:10:36]} Bxc8 {[%emt 0:00:24] KQB-KQB} 26. Qc3 {[%emt 0:04:23] Against Qc7} Qe8 {[%emt 0:03:15]} 27. Bc2 {[%emt 0:08:04]} (27. Be2 $16) 27... Bd7 {[%emt 0:03:08]} (27... Bg4 $1 $11 {remains equal.}) 28. Bb3 {[%emt 0:00:18]} Qb8 $1 {[%emt 0:02:01] White is slightly better.} 29. Qa5 {[%emt 0:15:56]} Qc8 {[%emt 0:01:56]} 30. Kh2 {[%emt 0:00:11]} Kh7 $1 {[%emt 0:00:55] Weighted Error Value: White=0.13 (very precise) /Black=0.14 (very precise)} 1/2-1/2

[Event "44th Chess Olympiad Open 2022"]
[Site "Chennai"]
[Date "2022.08.05"]
[Round "7.1"]
[White "Erigaisi Arjun"]
[Black "Gupta, Abhijeet"]
[Result "1-0"]
[ECO "D02"]
[WhiteElo "2689"]
[BlackElo "2627"]
[Annotator "TA"]
[PlyCount "91"]
[EventDate "2022.07.29"]
[EventType "team-tourn"]
[EventCountry "IND"]
[SourceTitle "playchess.com"]
[Source "ChessBase"]
[SourceQuality "1"]
[WhiteTeam "India"]
[BlackTeam "India"]
[WhiteTeamCountry "IND"]
[BlackTeamCountry "IND"]
[TimeControl "40/5400+30:1800+30"]

{[%evp 9,91,-1,41,0,0,0,16,-29,-10,-12,-4,-2,-6,-16,-13,-9,4,-18,-11,-22,-20,-16,0,0,0,0,56,50,62,51,38,0,79,66,77,75,73,41,48,18,16,0,0,0,47,36,95,94,93,73,119,20,28,17,167,168,313,306,306,304,449,450,522,497,485,217,210,200,196,181,413,420,420,399,406,402,361,356,612,605,571,547,486,485]} 1. d4 {[%emt 0:00:03]} d5 {[%emt 0:00:39]} 2. Bf4 {[%emt 0:00:07]} Nf6 {[%emt 0:04:42]} 3. e3 {[%emt 0:00:34]} c5 {[%emt 0:00:32]} 4. Nf3 {[%emt 0:00:08]} Nc6 {[%emt 0:00:29]} 5. Nbd2 {[%emt 0:00:06]} Nh5 {[%emt 0:01:47]} 6. Be5 {[%emt 0:17:40] D02: 1 d4 d5 2 Nf3 sidelines, including 2...Nf6 3 g3 and 2...Nf6 3 Bf4.} e6 {[%emt 0:10:22]} 7. Bb5 $5 {[%emt 0:01:30][%mdl 4] Exploring less charted territory.} f6 {[%emt 0:04:15]} 8. Bg3 {[%emt 0:00:43] The position is equal.} (8. dxc5 {seems wilder.} fxe5 9. Nxe5 Nf6 10. Nxc6 bxc6 11. Bxc6+ Bd7 12. Bxa8 Bxc5 13. Nb3) 8... Nxg3 {[%emt 0:02:01]} 9. hxg3 {[%emt 0:00:28]} cxd4 {[%emt 0:07:06]} 10. exd4 {[%emt 0:00:06] [#]} Bd6 $146 {[%emt 0:00:22]} ({Predecessor:} 10... Bd7 11. Bd3 Qb6 12. c4 O-O-O 13. O-O Nxd4 14. cxd5 exd5 15. Nxd4 Qxd4 16. Nf3 Qb6 {½-½ (80) Nihal,S (2650)-Grischuk,A (2773) Chess.com INT 2021}) 11. c4 {[%emt 0:02:47]} O-O {[%emt 0:04:02]} 12. O-O {[%emt 0:12:54]} Kh8 {[%emt 0:06:04]} (12... Qb6 {looks sharper.} 13. Rc1 Nxd4 14. Nxd4 Qxd4 15. cxd5 exd5 16. Nc4 Qxd1 17. Rfxd1 Bxg3 18. fxg3 dxc4 19. Bxc4+ Kh8) 13. cxd5 {[%emt 0:06:36]} exd5 {[%emt 0:00:11]} 14. Bxc6 {[%emt 0:00:04]} bxc6 {[%emt 0:00:03]} 15. Qc2 {[%emt 0:00:05]} Bd7 {[%emt 0:01:51]} 16. Nb3 {[%emt 0:05:58]} Rb8 {[%emt 0:07:17]} 17. Nc5 {[%emt 0:06:42]} Bxc5 {[%emt 0:03:28]} ({Black should try} 17... Bg4 $11) 18. dxc5 $14 {[%emt 0:02:04]} f5 {[%emt 0:01:19]} 19. Ne5 {[%emt 0:05:23]} f4 {[%emt 0:02:28]} 20. g4 {[%emt 0:10:17]} Kg8 {[%emt 0:23:58]} (20... Qg5 $1 $11 {keeps the balance.} 21. Nxd7 f3 22. Nxf8 (22. Nxb8 Qxg4 23. g3 Qh3) 22... Rxf8 23. gxf3 Rxf3) 21. Rfe1 $16 {[%emt 0:06:19]} Qc7 {[%emt 0:06:01]} 22. f3 {[%emt 0:03:09]} a5 {[%emt 0:01:22]} 23. Qd2 {[%emt 0:04:34]} Bc8 {[%emt 0:01:13]} 24. g5 {[%emt 0:01:37]} (24. Nd3 $5 {[%cal Re1e5]}) 24... Bf5 {[%emt 0:00:56]} 25. b3 {[%emt 0:02:01]} Rbe8 {[%emt 0:01:17]} 26. Qd4 {[%emt 0:02:15]} (26. Qxf4 Be4 $1 27. Qg3 Qxe5 $17) 26... Re6 {[%emt 0:03:33]} (26... Re7 $11) 27. Nd3 $1 $14 {[%emt 0:00:12]} (27. Qxf4 Be4 $1 28. Qg3 Qxe5 $17) 27... Rxe1+ {[%emt 0:01:42]} (27... Rg6 $14) 28. Rxe1 $16 {[%emt 0:00:04]} Bxd3 {[%emt 0:02:26]} 29. Qxd3 $14 {[%emt 0:00:05][%mdl 4096] Endgame KQR-KQR} Qd8 {[%emt 0:01:20]} ({Black should play} 29... Qd7) 30. Re5 {[%emt 0:02:47] 0x0.001f248500b2dp-1022s more active pieces.} (30. Qa6 $16) 30... Re8 {[%emt 0:01:22]} (30... Qb8 {keeps more tension.} 31. Re7 Re8 32. Qe2 Kf8) 31. Qd4 {[%emt 0:00:50]} Rxe5 {[%emt 0:00:34] Loses the game.} (31... Qb8 $11 32. Rxe8+ Qxe8) 32. Qxe5 $11 {[%emt 0:00:04] KQ-KQ} d4 {[%emt 0:00:55]} (32... Qd7 $142 33. Qb8+ (33. Qxf4 Qe7 $14) 33... Kf7) 33. Kf1 $18 {[%emt 0:00:29]} ({Stronger than} 33. Qxf4 d3 34. Qd2 Qd4+ 35. Kf1 Kf7 $11) 33... d3 {[%emt 0:00:43] Hoping for ...d2.} 34. Ke1 {[%emt 0:00:34]} a4 {[%emt 0:00:23]} (34... d2+ $142 35. Kd1 Qd7) 35. b4 {[%emt 0:00:42]} g6 {[%emt 0:00:40]} 36. Kd2 {[%emt 0:01:33]} Qd7 {[%emt 0:00:15]} 37. Qxf4 {[%emt 0:01:31]} (37. Qb8+ $142 Kg7 38. Qxf4) 37... Qd5 {[%emt 0:00:35]} 38. Qb8+ {[%emt 0:00:05]} Kf7 {[%emt 0:00:41]} 39. Qa7+ {[%emt 0:00:09]} Kf8 $2 {[%emt 0:00:22]} (39... Ke8 {is a better defense.}) 40. Qxa4 {[%emt 0:03:00]} Qxg5+ {[%emt 0:00:21]} 41. Kxd3 {[%emt 0:33:59]} Qf5+ {[%emt 0:04:00] [#]} 42. Kd2 $1 {[%emt 0:00:00]} Qg5+ {[%emt 0:04:41] [#]} 43. Kd1 $1 {[%emt 0:00:00]} Qe3 $2 {[%emt 0:01:17]} (43... Qd5+ 44. Kc2 Qd4 45. Qa8+ (45. Qxc6 Qc4+ 46. Kd2 Qxb4+ 47. Kd3 Qa3+ 48. Ke4 Qb4+ 49. Kd5 Qd2+ 50. Ke6 Qxa2+ 51. Kd7 Qf7+ 52. Kc8 Qa2 $18) 45... Kg7 46. Qb7+ (46. Qxc6 Qc4+ 47. Kd2 Qxb4+ 48. Ke3 Qa3+ 49. Ke4 Qxa2 $18) 46... Kg8 47. Qxc6 Qc4+ 48. Kd2 Qxb4+ 49. Ke3 Qa5 50. Qd5+ Kg7) 44. Qa8+ {[%emt 0:00:00] White is clearly winning.} Kg7 {[%emt 0:00:02]} 45. Qb7+ {[%emt 0:00:00]} Kh6 {[%emt 0:02:17]} 46. Qd7 {[%emt 0:00:00] Prevents Qd3+.  Weighted Error Value: White=0.18 (very precise) /Black=0.38} 1-0

[Event "44th Chess Olympiad Open 2022"]
[Site "Chennai"]
[Date "2022.08.05"]
[Round "7.1"]
[White "Sethuraman, S.P."]
[Black "Vidit, Santosh Gujrathi"]
[Result "1/2-1/2"]
[ECO "E59"]
[WhiteElo "2623"]
[BlackElo "2714"]
[Annotator "TA"]
[PlyCount "85"]
[EventDate "2022.07.29"]
[EventType "team-tourn"]
[EventCountry "IND"]
[SourceTitle "playchess.com"]
[Source "ChessBase"]
[SourceQuality "1"]
[WhiteTeam "India"]
[BlackTeam "India"]
[WhiteTeamCountry "IND"]
[BlackTeamCountry "IND"]
[TimeControl "40/5400+30:1800+30"]

{[%evp 23,85,10,6,4,6,0,0,0,18,9,29,0,8,0,0,0,6,0,0,-34,-27,-17,0,-13,0,0,0,-4,0,-3,-4,-12,-26,-15,-4,-6,-6,-7,-4,-4,-4,-4,0,0,-4,-4,0,0,0,0,0,0,0,0,0,-52,-52,-52,-52,-60,-60,-60,-60,-60]} 1. d4 {[%emt 0:00:18]} Nf6 {[%emt 0:00:32]} 2. c4 {[%emt 0:00:07]} e6 {[%emt 0:00:22]} 3. Nc3 {[%emt 0:00:05]} Bb4 {[%emt 0:00:17]} 4. e3 {[%emt 0:00:06]} O-O {[%emt 0:00:20]} 5. Bd3 {[%emt 0:00:09]} d5 {[%emt 0:00:14]} 6. a3 {[%emt 0:00:14]} Bxc3+ {[%emt 0:00:20]} 7. bxc3 {[%emt 0:00:08]} dxc4 {[%emt 0:00:08]} 8. Bxc4 {[%emt 0:00:06]} c5 {[%emt 0:00:06]} 9. Nf3 {[%emt 0:00:14]} Qc7 {[%emt 0:00:29]} 10. Be2 {[%emt 0:00:09]} Nc6 {[%emt 0:01:15]} 11. O-O {[%emt 0:00:57]} e5 {[%emt 0:00:50]} 12. Bb2 {[%emt 0:08:24]} Rd8 {[%emt 0:07:33]} 13. h3 {[%emt 0:15:41] E59: Nimzo-Indian: Rubinstein: Main Line: 7...Nc6 8 a3 Bxc3 9 bxc3 dxc4.} Bf5 {[%emt 0:00:53] [#]} 14. Bb5 $146 {[%emt 0:04:51]} ({Predecessor:} 14. Rc1 Rac8 15. Re1 a6 16. a4 Qa5 17. Nd2 exd4 18. cxd4 cxd4 19. Nc4 Qc7 20. exd4 Be6 {½-½ (49) Ding,L (2799)-Nakamura,H (2736) Chess.com INT 2021}) 14... e4 {[%emt 0:28:09]} 15. Nd2 {[%emt 0:01:12] The position is equal.} a6 {[%emt 0:07:10]} 16. Bxc6 {[%emt 0:20:31]} bxc6 {[%emt 0:00:57]} 17. c4 {[%emt 0:07:33]} cxd4 {[%emt 0:07:01]} 18. exd4 {[%emt 0:00:11]} Bg6 {[%emt 0:11:22]} 19. Re1 {[%emt 0:01:10]} Rab8 {[%emt 0:00:19]} 20. Bc3 {[%emt 0:00:44]} Re8 {[%emt 0:00:35]} 21. Nf1 {[%emt 0:18:47]} Nh5 {[%emt 0:00:30]} 22. Qd2 {[%emt 0:01:50]} Rb3 {[%emt 0:06:12]} 23. Re3 {[%emt 0:00:52]} Qd7 {[%emt 0:04:20]} 24. Ng3 {[%emt 0:03:20]} Nxg3 {[%emt 0:08:51]} 25. Rxg3 {[%emt 0:00:19]} f6 {[%emt 0:00:17]} 26. d5 {[%emt 0:07:42]} cxd5 {[%emt 0:00:36]} 27. Qxd5+ {[%emt 0:03:08]} Qxd5 {[%emt 0:00:45]} 28. cxd5 {[%emt 0:00:05]} e3 {[%emt 0:01:03]} 29. Bd4 {[%emt 0:00:47]} exf2+ {[%emt 0:08:04]} 30. Bxf2 {[%emt 0:00:13]} Rb5 {[%emt 0:00:58]} 31. Rd1 {[%emt 0:00:27]} Re5 {[%emt 0:00:48]} 32. d6 {[%emt 0:00:45] [#] Black must now prevent d7.} Rbd5 {[%emt 0:00:16]} 33. Rxd5 {[%emt 0:00:06]} Rxd5 $11 {[%emt 0:00:01][%mdl 4096] Endgame KRB-KRB} 34. Rb3 {[%emt 0:00:14]} Rxd6 {[%emt 0:00:29]} 35. Rb8+ {[%emt 0:00:17]} Kf7 {[%emt 0:00:19]} 36. Rb7+ {[%emt 0:00:04]} Kg8 {[%emt 0:00:32]} 37. Rb8+ {[%emt 0:00:10]} Kf7 {[%emt 0:00:49]} 38. Rb7+ {[%emt 0:00:04]} Ke6 {[%emt 0:00:07]} 39. Rb6 {[%emt 0:01:29]} (39. Bc5 $11 Be4 40. Rxg7 Rd1+ 41. Kf2 Rd2+ 42. Kg1) 39... Rxb6 {[%emt 0:00:51] Black is slightly better.} 40. Bxb6 {[%emt 0:00:05]} Be4 {[%emt 0:00:08]} 41. h4 {[%emt 0:30:55]} Kf5 {[%emt 0:30:10]} 42. Kf2 {[%emt 0:00:17]} Kg4 {[%emt 0:00:05]} 43. g3 {[%emt 0:00:03] Weighted Error Value: White=0.09 (flawless) /Black=0.04 (flawless)} 1/2-1/2

[Event "44th Chess Olympiad Open 2022"]
[Site "Chennai"]
[Date "2022.08.05"]
[Round "7.1"]
[White "Puranik, Abhimanyu"]
[Black "Narayanan.S.L"]
[Result "0-1"]
[ECO "C77"]
[WhiteElo "2612"]
[BlackElo "2659"]
[Annotator "TA"]
[PlyCount "76"]
[EventDate "2022.07.29"]
[EventType "team-tourn"]
[EventCountry "IND"]
[SourceTitle "playchess.com"]
[Source "ChessBase"]
[SourceQuality "1"]
[WhiteTeam "India"]
[BlackTeam "India"]
[WhiteTeamCountry "IND"]
[BlackTeamCountry "IND"]
[TimeControl "40/5400+30:1800+30"]

{[%evp 12,76,17,10,24,13,22,28,28,18,17,21,20,9,14,7,19,0,0,0,5,-17,0,-7,29,-20,-19,-14,-27,-29,-22,-200,-181,-223,-232,-229,-218,-210,-221,-250,-172,-298,-167,-179,-32,-50,0,0,0,0,0,0,0,0,0,0,-8,-8,0,-381,-372,-431,-418,-379,-225,-29994,-29995]} 1. e4 {[%emt 0:00:05]} e5 {[%emt 0:00:04]} 2. Nf3 {[%emt 0:00:09]} Nc6 {[%emt 0:00:06]} 3. Bb5 {[%emt 0:00:21]} a6 {[%emt 0:00:11]} 4. Ba4 {[%emt 0:00:27]} Nf6 {[%emt 0:00:07]} 5. d3 {[%emt 0:00:34]} b5 {[%emt 0:00:50]} 6. Bb3 {[%emt 0:00:05]} Bc5 {[%emt 0:00:13]} 7. Bg5 {[%emt 0:03:46][%cal Bc1g5,Bg5h4,Bh4g3][%mdl 32]} h6 {[%emt 0:00:43] The main line 7...h6 scores better than 7...d6. C77: Ruy Lopez: 3...a6 4 Ba4 Nf6, unusual lines.} 8. Bh4 {[%emt 0:00:32]} d6 {[%emt 0:03:01]} 9. c3 {[%emt 0:02:06]} g5 {[%emt 0:00:12] White has an edge.} 10. Bg3 {[%emt 0:00:05]} O-O {[%emt 0:00:12]} 11. O-O {[%emt 0:01:54]} Bb6 {[%emt 0:02:00]} 12. a4 {[%emt 0:02:47] White wants to play axb5.} Rb8 {[%emt 0:00:12]} 13. axb5 {[%emt 0:00:41]} axb5 {[%emt 0:00:06] [#]} 14. h3 $146 {[%emt 0:02:40]} ({Predecessor:} 14. Na3 Nh7 15. d4 h5 16. h3 h4 17. Bh2 g4 18. hxg4 Bxg4 19. Qd3 exd4 20. Nxd4 {0-1 (29) Sethuraman,S (2644)-Harsha,B (2509) chess24.com INT 2021}) 14... Ne7 {[%emt 0:05:09]} 15. Nbd2 {[%emt 0:02:44]} Ng6 {[%emt 0:06:44]} 16. d4 {[%emt 0:04:22][%cal Rd4e5]} Re8 {[%emt 0:00:20]} 17. Re1 {[%emt 0:01:27]} c5 {[%emt 0:28:45]} 18. Bc2 {[%emt 0:14:32]} (18. dxe5 $142 dxe5 19. Bd5) 18... cxd4 {[%emt 0:02:08]} 19. cxd4 {[%emt 0:00:07]} g4 {[%emt 0:01:21]} 20. hxg4 {[%emt 0:10:25]} Bxg4 {[%emt 0:00:06]} 21. dxe5 {[%emt 0:11:36]} (21. Nf1 $1 $11) 21... Nh5 $1 $19 {[%emt 0:03:38]} 22. Nf1 {[%emt 0:07:18]} Nxg3 {[%emt 0:01:33]} ({Weaker is} 22... Nxe5 23. Bxe5 dxe5 24. Ne3 Bxe3 25. Rxe3 $11) (22... dxe5 23. Ne3 $11) 23. Nxg3 {[%emt 0:00:02]} Nxe5 {[%emt 0:01:31]} 24. Ra3 {[%emt 0:01:05]} Qf6 {[%emt 0:01:50]} 25. Nf5 {[%emt 0:02:10]} d5 {[%emt 0:07:20]} 26. Ng3 {[%emt 0:09:38]} (26. Qd2 {only move.} Bxf5 27. exf5) 26... Kh8 {[%emt 0:11:33]} (26... Rbc8 $142 {White must now prevent ...b4.} 27. Bb1 h5) 27. exd5 {[%emt 0:06:14]} Bxf3 {[%emt 0:01:30]} (27... Nxf3+ $1 $19 28. gxf3 Qf4 29. Rxe8+ Rxe8) 28. gxf3 $15 {[%emt 0:00:02]} Qh4 {[%emt 0:10:55]} (28... Nxf3+ $2 29. Rxf3 Qd4 30. Rxf7 Qxd1 31. Rxd1 $18) (28... Bc5 $15 29. Rc3 Bd4 $1) 29. Kg2 $11 {[%emt 0:00:12]} Bxf2 $1 {[%emt 0:00:53][%mdl 64] Decoy} 30. Kxf2 {[%emt 0:00:33]} Qh2+ {[%emt 0:00:11][%mdl 64] Deflection} 31. Kf1 {[%emt 0:00:12][%cal Od1d4] Strongly threatening Qd4!} Qh3+ {[%emt 0:01:24]} 32. Kf2 {[%emt 0:00:02]} Qh2+ {[%emt 0:00:25][%mdl 64] Deflection} 33. Kf1 {[%emt 0:00:02][%cal Od1d4] Threatens to win with Qd4!} Qxg3 {[%emt 0:01:12]} 34. Qd4 $1 {[%emt 0:03:19] f4 is the strong threat.} f6 $40 {[%emt 0:03:10][%mdl 128] Black attacks.} 35. Qd2 $2 {[%emt 0:03:15][%mdl 8192]} ({Not} 35. f4 $2 {[#]} Qxe1+ $3 {[%mdl 512]} 36. Kxe1 Nf3+ 37. Kf2 Nxd4 $19) (35. Qf2 $1 $11 {and White has nothing to worry.} Qh3+ 36. Qg2 Qxg2+ 37. Kxg2) 35... Qh4 $19 {[%emt 0:01:00] Chess con chili.} 36. Be4 {[%emt 0:07:23]} Rg8 {[%emt 0:03:17] ( -> ...Qh1+)} 37. f4 {[%emt 0:02:53]} Nc4 {[%emt 0:00:15]} (37... Ng4 $142 {And now ...Rbe8 would win.} 38. Re2 b4) 38. Qc1 $2 {[%emt 0:01:05]} (38. Qf2 $19 Qxf2+ 39. Kxf2 Nxa3 40. bxa3) 38... Qh2 {[%emt 0:00:27] Weighted Error Value: White=0.61/Black=0.20 (precise)} 0-1

[Event "44th Chess Olympiad Open 2022"]
[Site "Chennai"]
[Date "2022.08.05"]
[Round "7.2"]
[White "So, Wesley"]
[Black "Melkumyan, Hrant"]
[Result "1-0"]
[ECO "B11"]
[WhiteElo "2773"]
[BlackElo "2634"]
[Annotator "TA"]
[PlyCount "55"]
[EventDate "2022.07.29"]
[EventType "team-tourn"]
[EventCountry "IND"]
[SourceTitle "playchess.com"]
[Source "ChessBase"]
[SourceQuality "1"]
[WhiteTeam "United States"]
[BlackTeam "Armenia"]
[WhiteTeamCountry "USA"]
[BlackTeamCountry "ARM"]
[TimeControl "40/5400+30:1800+30"]

{[%evp 10,55,34,8,26,27,32,9,31,24,19,19,22,21,27,19,22,17,20,22,29,26,43,37,37,6,4,-52,238,235,414,417,562,534,568,573,562,566,574,572,547,566,550,539,958,949,926,925]} 1. e4 {[%emt 0:00:46]} c6 {[%emt 0:00:10]} 2. Nc3 {[%emt 0:00:30]} d5 {[%emt 0:00:11]} 3. Nf3 {[%emt 0:00:12]} Bg4 {[%emt 0:00:19]} 4. h3 {[%emt 0:00:08]} Bxf3 {[%emt 0:00:08]} 5. Qxf3 {[%emt 0:00:04]} e6 {[%emt 0:00:13]} 6. Be2 {[%emt 0:00:06]} Bc5 {[%emt 0:01:28] B11: Caro-Kann: Two Knights Variation.} 7. O-O {[%emt 0:01:19]} Nd7 {[%emt 0:00:30]} 8. exd5 {[%emt 0:00:40]} cxd5 {[%emt 0:00:28] The position is equal.} 9. Rd1 {[%emt 0:00:22]} Ngf6 {[%emt 0:00:09]} 10. d4 {[%emt 0:00:10]} Be7 {[%emt 0:00:09]} 11. Bd3 {[%emt 0:00:56]} O-O {[%emt 0:00:11] [#]} 12. Bf4 $146 {[%emt 0:04:11]} ({Predecessor:} 12. Ne2 Qb8 13. Nf4 b5 14. h4 Qb7 15. h5 Bd6 16. h6 g6 17. Qh3 Rfe8 18. Be3 {½-½ (64) Dragnev,V (2535)-Fridman,D (2626) Katowice 2021}) 12... Nb8 {[%emt 0:09:06]} 13. Ne2 {[%emt 0:01:46]} Nc6 {[%emt 0:00:08]} 14. c3 {[%emt 0:00:05]} Re8 {[%emt 0:01:23]} 15. Re1 {[%emt 0:11:27][%cal Bd1e1,Be1e3,Be3e4,Be4f4,Bf4f5][%mdl 32]} g6 {[%emt 0:04:06]} 16. Ng3 {[%emt 0:07:58]} Nd7 {[%emt 0:02:02]} 17. Re3 {[%emt 0:08:43]} e5 {[%emt 0:07:06]} 18. Bh6 {[%emt 0:10:59]} ({Better is} 18. dxe5 $11 Bc5 19. e6 fxe6 20. Re2) 18... e4 $2 {[%emt 0:01:44][%mdl 8192] [#] A mistake that costs the game.} (18... Bf8 $15 {keeps the upper hand.} 19. Bxf8 e4) 19. Rxe4 $1 $18 {[%emt 0:01:15][%cal Oa1e1]} Nf8 $2 {[%emt 0:30:25]} (19... dxe4 {leads to mate.} 20. Qxf7+ Kxf7 21. Bc4+ Kf6 22. Nxe4+ Kf5 23. g4+ Kxe4 24. Re1+ Kf3 25. Re3#) (19... Nb6 {keeps fighting.}) 20. Rf4 {[%emt 0:18:54]} f5 {[%emt 0:00:55] [#]} 21. Nxf5 $1 {[%emt 0:00:04][%mdl 512] White is clearly winning.} gxf5 {[%emt 0:00:23]} 22. Rxf5 {[%emt 0:00:06]} Qd6 {[%emt 0:06:35]} 23. Qg4+ {[%emt 0:12:20]} Ng6 {[%emt 0:04:16] [#]} 24. Rxd5 $3 {[%emt 0:02:05][%mdl 512]} Qf6 {[%emt 0:00:33]} 25. g3 {[%emt 0:00:23]} Bf8 {[%emt 0:11:10]} 26. Rf5 {[%emt 0:01:06]} Qe7 {[%emt 0:05:44]} 27. Bc4+ {[%emt 0:04:07] This bishop pair is nice.} Kh8 {[%emt 0:00:07]} 28. Bg5 {[%emt 0:00:07] Weighted Error Value: White=0.07 (flawless) /Black=0.38} 1-0